Cogmind - Beta 17 @@@ ROGUE MODE // 2026.08.12 @ 16:46:41 Player: Boatmurdered Result: Destroyed by L-31 Rogue with Katana Performance ------------- Evolutions (0) 0 Regions Visited (4) 800 Robots Destroyed (51) 255 Value Destroyed (1016) 1016 Prototype IDs (1) 20 Alien Tech Used (0) 0 Bonus (-202) -202 TOTAL SCORE: 1889 Bonus ------- Friendly Fire -202 Cogmind --------- Core Integrity 0/250 Matter 300/300 Energy 200/200 System Corruption 1% Temperature Cool (0) Movement Treading (240) Ox1 Location -8/Recycling Parts ------- > --- POWER (1) -------- Subdweller Power Source > --- PROPULSION (2) --- Light Treads Light Treads > --- UTILITY (2) ------ High-capacity Storage Unit Signal Interpreter > --- WEAPON (2) ------- Assault Cannon Ripper > --- INVENTORY (20) --- Light Treads Machine Analyzer Scrap Shield Subdweller Laser SUBCON Basin (Full) Peak State ------------ > --- POWER ------------ Subdweller Power Source > --- PROPULSION ------- Light Treads Light Treads > --- UTILITY ---------- High-capacity Storage Unit Signal Interpreter > --- WEAPON ----------- Assault Cannon Ripper > --- INVENTORY -------- Light Treads Machine Analyzer Scrap Shield Subdweller Laser SUBCON Basin [Rating: 32] Favorites ----------- Power Ion Engine Engine Ion Engine Power Core Light Nuclear Core Propulsion Light Treads Treads Light Treads Utility Sensor Array Device Sensor Array Storage Medium Storage Unit Processor Signal Interpreter Weapon Improved Light Cannon Ballistic Gun Light Assault Rifle Ballistic Cannon Improved Light Cannon Launcher Rocket Launcher Slashing Weapon Ripper Build | -11 -10 -10 -10 -8 ------- Run | Yrd Mat Min Sub Rec Slots Evolved . | . . . . . Power . | . . . . . Propulsion . | . . . . . Utility . | . . . . . Weapon . | . . . . . Parts Attached 26 | 7 6 7 6 . Power 5 | 1 . 2 2 . Engine 3 | 1 . . 2 . Core 2 | . . 2 . . Reactor . | . . . . . Propulsion 3 | 2 1 . . . Treads 3 | 2 1 . . . Leg . | . . . . . Wheel . | . . . . . Hover . | . . . . . Flight . | . . . . . Utility 8 | 2 2 2 2 . Device 4 | 1 1 2 . . Storage 3 | 1 1 . 1 . Processor 1 | . . . 1 . Hackware . | . . . . . Protection . | . . . . . Artifact . | . . . . . Weapon 10 | 2 3 3 2 . Energy Gun . | . . . . . Energy Cannon . | . . . . . Ballistic Gun 2 | 2 . . . . Ballistic Cannon 6 | . 3 2 1 . Launcher 1 | . . 1 . . Special Weapon . | . . . . . Impact Weapon . | . . . . . Slashing Weapon 1 | . . . 1 . Piercing Weapon . | . . . . . Special Melee Weapon . | . . . . . Unidentified Prototypes 1 | . . 1 . . Parts Lost 3 | . . . 3 . Power 1 | . . . 1 . Propulsion . | . . . . . Utility . | . . . . . Weapon 2 | . . . 2 . Highest Loss Streak 2 | . . . 2 . To Critical Strikes . | . . . . . Average Backups 7 | 3 9 10 5 4 Power . | . 1 1 . . Propulsion . | . . 1 1 1 Utility 3 | 1 5 5 2 2 Weapon 1 | . 1 2 1 1 Tool/Special . | . . . . . Unused Backups 13 | . 3 3 4 3 Power 2 | . . 1 1 . Propulsion 1 | . 1 . . . Utility 7 | . 1 2 2 2 Weapon 3 | . 1 . 1 1 Tool/Special . | . . . . . Average Slot Usage (%) 99 | . 99 99 98 100 Engine 12 | . 14 8 13 14 Core 1 | . . 5 . . Treads 28 | . 28 28 28 28 Device 9 | . 13 13 3 . Storage 14 | . 14 14 14 14 Processor 4 | . . . 10 14 Ballistic Cannon 22 | . 27 28 17 14 Launcher 3 | . . . 7 . Slashing Weapon 1 | . . . 2 14 Peak Build Rating 32 | 8 10 19 32 32 Average Rating 16 | 6 9 11 24 32 On Entrance 12 | . 8 10 14 32 Avg Prop Armor Cover (%) . | . . . . . Naked Turns . | . . . . . Heaviest Build 56 | 13 24 28 56 53 Greatest Support 40 | 40 40 40 40 40 Greatest Overweight (x) 1 | 1 . . 1 1 Average Overweight (x) . | . . . . 1 Largest Inventory Capacity 20 | 8 10 10 20 20 Average Capacity 13 | 7 9 10 17 20 Most Carried 20 | 6 10 10 20 20 Average Carried 12 | 3 9 9 17 20 Final Capacity 20 | 8 10 10 20 20 Final Carried 20 | 6 10 10 20 20 Class Distribution -------------------- 100% | Mutant Dominant Class ---------------- Mutant | -10/Materials Mutant | -10/Mines Mutant | -10/Subcaves Mutant | -8/Recycling Resources | -11 -10 -10 -10 -8 ----------- Run | Yrd Mat Min Sub Rec Matter Collected 1601 | 308 479 343 471 . Remotely . | . . . . . Salvage Created 988 | 158 359 89 230 152 Parts 82 | 17 27 10 23 5 Haulers Intercepted 2 | . 2 . . . Recyclers Shooed 1 | . 1 . . . Parts Field Recycled . | . . . . . Retrieved Matter . | . . . . . Parts Self-Destructed 14 | . . . 14 . Prevented . | . . . . . Parts Restored . | . . . . . Kills | -11 -10 -10 -10 -8 ------- Run | Yrd Mat Min Sub Rec Combat Hostiles Destroyed 38 | . 15 9 11 3 Melee 6 | . . . 3 3 Cannons 30 | . 15 7 8 . AOE 2 | . . 2 . . Classes Destroyed 10 | 2 4 . 2 2 Tunneler 5 | 5 . . . . Hauler 2 | . 2 . . . Recycler 2 | 1 1 . . . Watcher 3 | . 3 . . . Swarmer 20 | . 9 9 2 . Grunt 9 | . 6 . 2 1 Sentry 1 | . . . . 1 Programmer 1 | . . . . 1 Artisan 1 | . . . 1 . Subdweller 7 | . . . 7 . Thug 1 | . . 1 . . Best Kill Streak 4 | 2 4 3 2 3 Combat Bots Only 3 | . 3 3 2 3 Max Kills in Single Turn 2 | 1 1 2 1 1 Gunslinging . | . . . . . Exploded 2 | . . 2 . . Melee 1 | . . . 1 1 Uniques/NPCs Destroyed . | . . . . . Combat | -11 -10 -10 -10 -8 -------- Run | Yrd Mat Min Sub Rec Hostile Shots Fired 145 | . 50 20 59 16 Missed 39 | . 19 6 13 1 Hits 106 | . 31 14 46 15 Melee 1 | . . . . 1 Projectile 105 | . 31 14 46 14 Critical Strikes 3 | . . 1 . 2 Damage Taken 1477 | . 269 132 838 238 Core 279 | . 48 13 143 75 Absorbed by Shields . | . . . . . Regen/Repaired (Parts) 100 | . 100 . . . Core Remaining (%) 100 | 100 . . . . Volleys Fired 125 | 19 44 15 47 . Largest 2 | 2 2 2 2 . Hottest 70 | 40 66 70 70 . Shots Fired 220 | 38 88 29 65 . Gun 38 | 38 . . . . Cannon 176 | . 88 28 60 . Launcher 6 | . . 1 5 . Special . | . . . . . Kinetic 214 | 38 88 28 60 . Thermal . | . . . . . Explosive 6 | . . 1 5 . Electromagnetic . | . . . . . Robot Hit Streak 13 | 5 13 8 13 . Robot Miss Streak 4 | 1 4 2 2 . Penetration Max . | . . . . . Secondary Targets . | . . . . . Shots Hit Robots 151 | 26 46 19 52 8 Core Hits 63 | 11 21 11 17 3 Critical Kills . | . . . . . Critical Parts Destroyed . | . . . . . Critical Strikes 6 | . 2 1 3 . Blast 6 | . 2 1 3 . Melee Attacks 21 | . . . 12 9 Impact . | . . . . . Slashing 21 | . . . 12 9 Piercing . | . . . . . Sneak Attacks . | . . . . . Combat Hostiles . | . . . . . Follow-up Attacks . | . . . . . Damage Inflicted 3172 | 229 927 562 1193 261 Guns 229 | 229 . . . . Cannons 2308 | . 927 417 964 . Explosions 145 | . . 145 . . Melee 490 | . . . 229 261 Ramming . | . . . . . Kinetic 2537 | 229 927 417 964 . Thermal . | . . . . . Explosive 145 | . . 145 . . Electromagnetic . | . . . . . Impact . | . . . . . Slashing 490 | . . . 229 261 Piercing . | . . . . . Highest Corruption 1 | . . . . 1 Average Corruption 1 | . . . . 1 Corruption Purged . | . . . . . Corruption Blocked . | . . . . . Overload Shots . | . . . . . Overflow Damage 28 | . . 10 . 18 Projectiles 8 | . . 8 . . Explosions 2 | . . 2 . . Melee 18 | . . . . 18 Knockbacks 19 | . 6 5 8 . Impact . | . . . . . Kinetic 19 | . 6 5 8 . Secondary . | . . . . . Self-Inflicted Damage 61 | . . . 61 . Shots 2 | . . . 2 . Rammed . | . . . . . Targets Rammed . | . . . . . Kicked . | . . . . . Crushed . | . . . . . Highest Temperature 60 | . 60 45 . 9 Average Temperature 15 | . 15 16 . 9 Received Heat Transfer 348 | . 42 . 234 72 Siege Activations . | . . . . . Martial Activations . | . . . . . Shielding Activations . | . . . . . Robots Disrupted . | . . . . . Combat Hostiles . | . . . . . Robots Corrupted . | . . . . . Combat Hostiles . | . . . . . Parts Fried . | . . . . . Impact Corruptions . | . . . . . Robots Melted . | . . . . . Combat Hostiles . | . . . . . Parts Melted 1 | . . . 1 . Heat Transferred . | . . . . . Parts Sabotaged . | . . . . . Parts Stolen . | . . . . . Parts Stripped . | . . . . . Power Chain Reactions . | . . . . . Alert | -11 -10 -10 -10 -8 ------- Run | Yrd Mat Min Sub Rec Maximum Alert Level . | . . . . . Low Security (%) 100 | 100 100 100 . 100 Level 1 . | . . . . . Level 2 . | . . . . . Level 3 . | . . . . . Level 4 . | . . . . . Level 5 . | . . . . . High Security . | . . . . . Max Security . | . . . . . Peak Influence 113 | 5 113 111 . 76 Initial 37 | . . 37 . 26 Average 27 | 1 35 21 . 35 Influence Increases 972 | 30 543 219 120 60 Destroy 0b10 Robot/C 620 | . 300 180 80 60 Destroy 0b10 Robot/NC 60 | 30 30 . . . Destroy Leader 120 | . 80 30 10 . Successful Hack 30 | . 30 . . . Select Force Hacks 60 | . 60 . . . Destroy Structure 22 | . 13 9 . . Lose Combat Pursuer 60 | . 30 . 30 . Influence Decreases 896 | 30 445 317 64 40 Entered New Map 91 | . . 61 . 30 Time Decay 805 | 30 445 256 64 10 Squads Dispatched 4 | . 4 . . . Investigation 4 | . 4 . . . Extermination . | . . . . . Reinforcement . | . . . . . Assault . | . . . . . Garrison . | . . . . . Intercept . | . . . . . Searches Triggered . | . . . . . Construction Impeded . | . . . . . Haulers Reinforced . | . . . . . Active Scanning Responses . | . . . . . Cargo Convoy Interrupts . | . . . . . Stealth | -11 -10 -10 -10 -8 --------- Run | Yrd Mat Min Sub Rec Distress Signals . | . . . . . Communications Jammed . | . . . . . Distress Signals . | . . . . . Times Spotted 52 | . 24 9 13 6 Peak Tracking Total 6 | . 3 3 2 6 Tactical Retreats 2 | . 1 . 1 . Traps | -11 -10 -10 -10 -8 ------- Run | Yrd Mat Min Sub Rec Traps Triggered 2 | . 1 1 . . Indirectly . | . . . . . Trap Hack Attempts . | . . . . . Triggered . | . . . . . Disarmed . | . . . . . Reprogrammed . | . . . . . Reused . | . . . . . Traps Extracted . | . . . . . Installed . | . . . . . Triggered . | . . . . . Machines | -11 -10 -10 -10 -8 ---------- Run | Yrd Mat Min Sub Rec Machines Disabled 1 | . . 1 . . Max in Single Turn 1 | . . 1 . . Machines Repaired . | . . . . . Machines Dismantled . | . . . . . Machines Sabotaged . | . . . . . Overloaded Fab Kills . | . . . . . Hacking | -11 -10 -10 -10 -8 --------- Run | Yrd Mat Min Sub Rec Machines Accessed 16 | . 11 2 3 . Terminals 8 | . 8 . . . Fabricators . | . . . . . Repair Stations 1 | . 1 . . . Recycling Units 2 | . 2 . . . Scanalyzers . | . . . . . Garrison Access . | . . . . . Total Hacks 43 | . 35 2 6 . Successful 35 | . 27 2 6 . Failed 7 | . 7 . . . Catastrophic . | . . . . . Database Lockouts 1 | . 1 . . . Manual 28 | . 28 . . . Terminals 25 | . 25 . . . Fabricators . | . . . . . Repair Stations 4 | . 4 . . . Recycling Units 6 | . 6 . . . Scanalyzers . | . . . . . Garrison Access . | . . . . . Terminal Hacks 14 | . 6 2 6 . Record 4 | . . . 4 . Robot Analysis 4 | . 4 . . . Open Door 3 | . . 2 1 . Branch Access Points 1 | . 1 . . . Terminal Index 1 | . 1 . . . Release Object 1 | . . . 1 . Fabricator Hacks . | . . . . . Repair Station Hacks 4 | . 4 . . . Scan Component 2 | . 2 . . . Repair 2 | . 2 . . . Recycling Unit Hacks 2 | . 2 . . . Report Inventory 1 | . 1 . . . Retrieve Matter 1 | . 1 . . . Scanalyzer . | . . . . . Garrison Access Hacks . | . . . . . Unauthorized Hacks 15 | . 15 . . . Terminals 11 | . 11 . . . Botnet 5 | . 5 . . . Skim 6 | . 6 . . . Fabricators . | . . . . . Repair Stations . | . . . . . Recycling Units 4 | . 4 . . . Reject 1 | . 1 . . . Mask 1 | . 1 . . . Tunnel 2 | . 2 . . . Scanalyzers . | . . . . . Garrison Access . | . . . . . Data Cores Recovered . | . . . . . Used . | . . . . . Hacking Detections 11 | . 11 . . . Full Trace Events 2 | . 2 . . . Feedback Events . | . . . . . Feedback Blocked . | . . . . . Robot Schematics Acquired . | . . . . . Robots Built . | . . . . . Authchips . | . . . . . Time . | . . . . . Total Robot Build Rating . | . . . . . Part Schematics Acquired . | . . . . . Parts Built . | . . . . . Authchips . | . . . . . Time . | . . . . . Total Part Build Rating . | . . . . . Part Studies Acquired . | . . . . . Parts Repaired 2 | . 2 . . . Time 52 | . 52 . . . Parts Recycled . | . . . . . Recycled Matter . | . . . . . Retrieved Matter . | . . . . . Retrieved Components . | . . . . . Parts Scanalyzed . | . . . . . Part Schematics Acquired . | . . . . . Parts Damaged . | . . . . . Bothacking | -11 -10 -10 -10 -8 ------------ Run | Yrd Mat Min Sub Rec Used RIF Installer . | . . . . . Robots Hacked . | . . . . . Non-combat . | . . . . . Combat . | . . . . . Robot Hacks Applied . | . . . . . Relay Couplers Released . | . . . . . Fabnet Peak Effective % . | . . . . . Robots Rewired . | . . . . . Allies Hacked . | . . . . . Hacks Repelled . | . . . . . Allies | -11 -10 -10 -10 -8 -------- Run | Yrd Mat Min Sub Rec Total Allies . | . . . . . Largest Group . | . . . . . Highest-Rated Group . | . . . . . Highest-Rated Ally . | . . . . . Total Orders 4 | . . . 4 . EXPLORE 1 | . . . 1 . RETURN 3 | . . . 3 . Ally Attacks . | . . . . . Total Damage . | . . . . . Kills . | . . . . . Allies Corrupted . | . . . . . Allies Melted . | . . . . . Intel | -11 -10 -10 -10 -8 ------- Run | Yrd Mat Min Sub Rec Active Infowar (turns) 3077 | 163 1562 1151 201 . Sensors 2813 | . 1461 1151 201 . Seismic 264 | 163 101 . . . Robot Analysis Total 4 | . 4 . . . Derelict Logs Recovered 4 | . . 2 2 . Drone Launches 3 | . . . 3 . Drone Recoveries 3 | . . . 3 . Exploration | -11 -10 -10 -10 -8 ------------- Run | Yrd Mat Min Sub Rec Turns Passed 5460 | 237 1563 1201 2422 37 Spaces Moved 2535 | 94 785 686 964 6 Core 5 | 5 . . . . Treads 2530 | 89 785 686 964 6 Legs . | . . . . . Wheels . | . . . . . Hover . | . . . . . Flight . | . . . . . Fastest Speed 50 | 50 160 160 160 240 Average Speed 180 | 155 160 160 214 240 Slowest Speed 240 | 160 160 160 240 240 Overloaded Moves . | . . . . . Propulsion Burnouts . | . . . . . Robots Hopped . | . . . . . Potential Cave-ins . | . . . . . Cave-ins Triggered . | . . . . . Exploration Rate (%) 49 | 6 95 89 54 4 Regions Visited 4 Branch Regions 3 Pre-discovered Areas 6 | . 3 2 1 . Known Exits Taken 3 | . 1 1 1 . Unknown Exits Taken 1 | 1 . . . . Scrap Searched 5 | . . 2 3 . Spaces Dug 4 | . . . 4 . Terrain Destroyed 61 | . 4 9 48 . Melee 4 | . . . 4 . Projectile 8 | . 4 3 1 . AOE 49 | . . 6 43 . Terrain Rammed . | . . . . . Walls Destroyed . | . . . . . Machines Disabled . | . . . . . Actions | -11 -10 -10 -10 -8 --------- Run | Yrd Mat Min Sub Rec Total 3171 | 151 1006 761 1238 15 Wait 402 | 26 152 39 185 . Move 2531 | 93 784 685 963 6 Hop . | . . . . . Pick Up 24 | 6 9 3 6 . Fast Attach 15 | 7 3 3 2 . Attach 3 | . . . 3 . Detach 2 | . 2 . . . Swap 21 | . 4 8 9 . Drop 27 | . 8 8 11 . Fire 125 | 19 44 15 47 . Melee 21 | . . . 12 9 Ram . | . . . . . Kick . | . . . . . Crush . | . . . . . Escape Stasis . | . . . . . Rewire . | . . . . . Trap . | . . . . . Miscellaneous . | . . . . . Route ------- -11/Scrapyard -10/Materials (discovered 6 exits: *Mat x3 / *Min x2 / Sub) -10/Mines (discovered 3 exits: *Mat x2 / *Sub) -10/Subcaves (discovered 2 exits: *Mat / *Rec) -8/Recycling (discovered 1 exit: Fac) History --------- Turn | Location | Event 24 | -11/Scrapyard | Discovered new exit (range 14) 238 | -11/Scrapyard | Entered Materials 301 | -10/Materials | Build established: Mutant 792 | -10/Materials | Discovered new exit (range 4) 874 | -10/Materials | Identified exit to Mines 878 | -10/Materials | Discovered new exit (range 8) 994 | -10/Materials | Learned location of 1 exit from Recycling 1011 | -10/Materials | Learned location of Mines (-9) 1017 | -10/Materials | Learned location of 2 exits from Mines 1019 | -10/Materials | Learned Storage emergency access door positions 1020 | -10/Materials | Learned location of 1 exit from Storage 1022 | -10/Materials | Identified exit to Materials 1033 | -10/Materials | Learned Storage security intel 1056 | -10/Materials | Identified exit to Subcaves 1140 | -10/Materials | Central database locked down 1323 | -10/Materials | Repaired Lgt. Treads 1350 | -10/Materials | Repaired Lgt. Treads 1801 | -10/Materials | Entered Mines 1858 | -10/Mines | Learned location of 1 exit from Materials 1957 | -10/Mines | Learned location of Zion (-7) 2201 | -10/Mines | Learned location of Storage (-8) 2401 | -10/Mines | Received a Rocket Launcher from a helpful Derelict 2483 | -10/Mines | Met a Derelict who couldn't figure out how to use a Trap Extractor 2840 | -10/Mines | Found the Drone Emporium 2851 | -10/Mines | Found Prototype Device 2851 | -10/Mines | Identified Thief Drone Bay 3002 | -10/Mines | Entered Subcaves 3003 | -10/Subcaves | Approached by a straggling Scientist 3003 | -10/Subcaves | Identified exit to Recycling 3006 | -10/Subcaves | Ambushed by Subdwellers from Twisted Machinery 3093 | -10/Subcaves | Core integrity fell below 50% 3225 | -10/Subcaves | Discovered new exit (range 79) 3298 | -10/Subcaves | Met a Zionite searching for "candidates" 3376 | -10/Subcaves | Shifting Twisted Machinery released Battle Cannon 3377 | -10/Subcaves | Shifting Twisted Machinery released Mak. Leg 3629 | -10/Subcaves | Found SUBCON Basin 3685 | -10/Subcaves | Identified exit to Materials 3856 | -10/Subcaves | Shifting Twisted Machinery released Mak. Leg 3975 | -10/Subcaves | Shifting Twisted Machinery released Sub. Power Source 4497 | -10/Subcaves | Ambushed by angry Subdweller bent on revenge 5090 | -10/Subcaves | Learned Materials security intel 5269 | -10/Subcaves | Visited Clippyterm 5271 | -10/Subcaves | Learned Research machine intel 5301 | -10/Subcaves | Core integrity fell below 20% 5424 | -10/Subcaves | Entered Recycling 5425 | -8/Recycling | Met a Zionite searching for Scraptown 5425 | -8/Recycling | Identified exit to Factory 5461 | -8/Recycling | Destroyed by L-31 Rogue with Katana Last Messages --------------- Loading 1 Recycling exit... 05426_ O6-5TY(z): "I've heard great things about that place, but almost no one seems to know where to find it, only that you access it somewhere from Recycling here." 05427_ O6-5TY(z): "Anyway I've been here searching too long already, time to slink back to the caves before I'm caught. You'd best do the same." 05434_ L-31 Rogue springs to life. 05434_ I-25 Savior springs to life. 05435_ P-60 Hacker springs to life. 05435_ G-47 Trooper springs to life. 05435_ Y-45 Defender springs to life. 05435_ I-25 Savior springs to life. 05441_ Destroyed Shock Rifle. 05444_ P-60 Hacker destroyed. 05454_ Y-45 Defender destroyed. 05456_ Critical hit (Burn: +37). 05459_ G-47 Trooper destroyed. Map ----- +----------------------------------------------------+ | ??????????????????????????????? | | ??????????????????????????????? | | ??????????????????????????????? | | ??????????????????????????????? | | ??????????????????????????????? | | ??????????????????????????????? | | ??????????????????????????????? | | ??????????????????????????????? | | ??????????????????????????????? | | ??????????????????????????????? | | ??????????????????????????????? | | ??????????????????????????????? | | ??????????????????????????????? | | ??????????????????????????????? | | ??????????????????????????????? | | ??????????????????????????????? | | ??????????????????????????????? | | ??????????????????????????????? | | ???#####??????????????????????? | | ???# #??#######?????????????? | | ???# #? / #?????????????? | | ???# #? #?????????????? | | ???# # ] #?????????????? | | ???# !#[ ! #?????????????? | | ???# %!l% ] %#?????????????? | | ???# @# #?????????????? | | ???# # [ !=#?????????????? | | ???# #? * #?????????????? | | ???# #? #?????????????? | | ???# #??#######?????????????? | | ???# #??????????????????????? | | ???# #??????????????????????? | | ???# #??????????????????????? | | ???# #??????????????????????? | | ???# +??????????????????????? | | ???# #??????????????????????? | | ???# ???????????????????????? | | ???# ???????????????????????? | | ???# ???????????????????????? | | ???# ???????????????????????? | | ???? ???????????????????????? | | ??????????????????????????????? | | ??????????????????????????????? | | ??????????????????????????????? | | ??????????????????????????????? | | ??????????????????????????????? | | ??????????????????????????????? | | ??????????????????????????????? | | ??????????????????????????????? | | ??????????????????????????????? | +----------------------------------------------------+ Best States ------------- Heat Dissipation 25 Energy Generation 15 Energy Capacity 250 Matter Stores 300 Matter Capacity 300 Sight Range 16 Robot Scan Range 14 Terrain Scan Density 10 Evasion (%) 40 Recoil Reduction 2 Item Schematics ----------------- None Robot Schematics ------------------ None Fabricated ------------ Nothing Repaired ---------- Lgt. Treads | 57% | -10/Materials Lgt. Treads | 71% | -10/Materials Studied --------- None Alien Tech Used ----------------- None Achievements -------------- Art Critic Backstab Challenges ------------ None Game ------ Seed SurveybotMobileWyrmscale Manual? 0 Play Time 00:52:32 Cumulative 26.8 hours Start 2026.08.12 @ 15:06:24 End 2026.08.12 @ 16:46:41 Sessions 1 Manual Loads 0 Difficulty Rogue Special Mode None Game No. 17 Rogue 17 Adventurer 0 Explorer 0 Win Type - Total 0 Types 0/0/0/0/0/0/0/0/0/0 Lore% 23 Gallery% 19 Achievement% 24 Wizard Run 0 Options --------- Layout 1 ASCII 0 Keyboard 0 Movement Mouse Keybinds 0 Fullscreen 1 Font 24/Smallcaps Map View 50x35 Zoom Use 0% Tactical HUD 1 Map Filters NONE Filters NONE Steam 1 RUN: 49321794-13b1-46e9-8536-6f0bb9192663